fUSD/lending_fUSD_20260311
["ID","MTS","AMOUNT","RATE_DAILY","PERIOD"]
[408228646,1773268250892,-1000.0,0.0003747,2]
[408228647,1773268250901,-191.5,0.000375,14]
[408228648,1773268250912,-1854.08,0.000375,2]
[408228649,1773268250921,-1000.0,0.00037535,2]
[408228650,1773268250930,-1000.0,0.00037535,2]
[408228651,1773268250939,-1000.0,0.00037535,2]
[408228652,1773268250948,-1000.0,0.00037535,2]
[408228653,1773268250957,-1000.0,0.00037535,2]
[408228654,1773268250966,-334.67,0.0003778,30]
[408228655,1773268250975,-166.66,0.00037841,30]
[408228656,1773268250984,-306.11185723,0.00037902,53]
[408228657,1773268250992,-350.0,0.0003793,2]
[408228658,1773268251002,-509.0,0.00038,21]
[408228659,1773268251012,-417.61,0.00038034,30]
[408228660,1773268251021,-1001.84,0.00038034,30]
[408228661,1773268251030,-350.0,0.00038101,2]
[408228662,1773268251039,-350.0,0.00038118,2]
[408228663,1773268251048,-150.0,0.00038252,2]
[408228664,1773268251057,-2029.3,0.00038329,120]
[408228665,1773268251066,-347.56,0.000385,14]
[408228666,1773268251075,-506.45867194,0.000389,120]
[408228667,1773268251083,-350.0,0.00038905,2]
[408228668,1773268251093,-2736.7193355,0.00039,120]
[408228669,1773268251102,-334.67,0.00039221,30]
[408228670,1773268251111,-500.0,0.00039234,120]
[408228671,1773268251120,-500.0,0.00039234,120]
[408228672,1773268251129,-500.0,0.00039234,2]
[408228673,1773268251140,-500.0,0.00039234,120]
[408228674,1773268251148,-922.0,0.00039235,2]
[408228675,1773268251157,-1213.0,0.00039235,2]
[408228676,1773268251166,-1043.0,0.00039235,2]
[408228677,1773268251177,-620.0,0.00039235,2]
[408228678,1773268251186,-3506.0,0.00039235,2]
[408228679,1773268251195,-1342.0,0.00039235,2]
[408228680,1773268251204,-444.44444,0.0003956,115]
[408228681,1773268251213,-444.44444,0.0003956,115]
[408228682,1773268251222,-444.44444,0.0003956,115]
[408228683,1773268251231,-444.44445,0.0003956,115]
[408228684,1773268251240,-444.44445,0.0003956,115]
[408228685,1773268251249,-444.44444,0.0003959,115]
[408228686,1773268251258,-150.0,0.00039599,20]
[408228687,1773268251267,-191.5,0.000396,14]
[408228688,1773268251275,-500.0,0.0003965,120]
[408228689,1773268251284,-506.85,0.0003967,120]
[408228690,1773268251293,-500.0,0.0003967,120]
[408228691,1773268251302,-500.0,0.0003967,120]
[408228692,1773268251312,-500.0,0.0003967,120]
[408228693,1773268251321,-500.0,0.0003967,30]
[408228694,1773268251329,-500.0,0.0003967,40]
[408228695,1773268251338,-500.0,0.0003967,45]
[408228696,1773268251347,-500.0,0.0003967,120]
[408228697,1773268251356,-500.0,0.0003967,120]
[408228698,1773268251365,-500.0,0.0003967,120]
[408228699,1773268251374,-500.0,0.00039689,2]
[408228700,1773268251383,-500.0,0.00039689,120]
[408228701,1773268251391,-506.85,0.00039689,120]
[408228702,1773268251400,-500.0,0.00039689,120]
[408228703,1773268251409,-500.0,0.00039689,120]
[408228704,1773268251418,-500.0,0.00039689,120]
[408228705,1773268251427,-500.0,0.00039689,30]
[408228706,1773268251435,-500.0,0.00039689,40]
[408228707,1773268251444,-500.0,0.00039689,45]
[408228708,1773268251453,-500.0,0.00039689,120]
[408228709,1773268251462,-500.0,0.00039689,120]
[408228710,1773268251471,-500.0,0.00039689,120]
[408228711,1773268251480,-2518.0,0.00039699,5]
[408228712,1773268251490,-500.0,0.00039699,30]
[408228713,1773268251502,-300.0,0.00039699,10]
[408228714,1773268251510,-500.0,0.00039699,120]
[408228715,1773268251519,-500.0,0.00039699,120]
[408228716,1773268251529,-500.0,0.00039699,120]
[408228717,1773268251539,-500.0,0.00039699,30]
[408228718,1773268251548,-500.0,0.00039699,2]
[408228719,1773268251557,-500.0,0.00039699,120]
[408228720,1773268251567,-506.85,0.00039699,120]
[408228721,1773268251576,-500.0,0.00039699,120]
[408228722,1773268251584,-500.0,0.00039699,120]
[408228723,1773268251593,-500.0,0.00039699,120]
[408228724,1773268251602,-500.0,0.00039699,30]
[408228725,1773268251611,-598.20309433,0.00039699,40]
[408228726,1773268251620,-500.0,0.00039699,45]
[408228727,1773268251629,-500.0,0.00039699,120]
[408228728,1773268251638,-500.0,0.00039699,120]
[408228729,1773268251647,-500.0,0.00039699,120]
[408228730,1773268251656,-250.0,0.00039699,30]
[408228731,1773268251665,-250.0,0.00039699,30]
[408228732,1773268251674,-1030.0,0.00039699,30]
[408228733,1773268251683,-250.0,0.00039699,30]
[408228734,1773268251691,-1068.11,0.00039699,30]
[408228735,1773268251700,-250.0,0.00039699,30]
[408228736,1773268251709,-1107.63007,0.00039699,30]
[408228737,1773268251718,-250.0,0.00039699,30]
[408228738,1773268251727,-1148.61238259,0.00039699,30]
[408228739,1773268251735,-151.0,0.00039699,30]
[408228740,1773268251744,-151.0,0.00039699,30]
[408228741,1773268251754,-250.0,0.00039699,30]
[408228742,1773268251763,-1191.11104075,0.00039699,30]
[408228743,1773268251771,-202.29042562,0.00039699,30]
[408228744,1773268251780,-156.587,0.00039699,30]
[408228745,1773268251789,-250.0,0.00039699,30]
[408228746,1773268251798,-1235.18214925,0.00039699,30]
[408228747,1773268251807,-162.380719,0.00039699,30]
[408228748,1773268251815,-250.0,0.00039699,30]
[408228749,1773268251823,-168.3888056,0.00039699,30]
[408228750,1773268251833,-1280.88388878,0.00039699,30]
[408228751,1773268251841,-500.0,0.00039699,30]
[408228752,1773268251850,-174.61919141,0.00039699,30]
[408228753,1773268251859,-500.0,0.00039699,30]
[408228754,1773268251868,-250.0,0.00039699,30]
[408228755,1773268251878,-1328.27659266,0.00039699,30]
[408228756,1773268251887,-250.0,0.00039699,30]
[408228757,1773268251895,-181.08010149,0.00039699,30]
[408228758,1773268251904,-500.0,0.00039699,30]
[408228759,1773268251914,-500.0,0.00039699,30]
[408228760,1773268251923,-250.0,0.00039699,30]
[408228761,1773268251932,-1377.42282659,0.00039699,30]
[408228762,1773268251941,-187.78006525,0.00039699,30]
[408228763,1773268251950,-250.0,0.00039699,30]
[408228764,1773268251959,-500.0,0.00039699,30]
[408228765,1773268251968,-1428.38747117,0.00039699,30]
[408228766,1773268251977,-500.0,0.00039699,30]
[408228767,1773268251987,-194.72792766,0.00039699,30]
[408228768,1773268251996,-1481.23780761,0.00039699,30]
[408228769,1773268252005,-250.0,0.00039699,30]
[408228770,1773268252014,-500.0,0.00039699,30]
[408228771,1773268252023,-201.93286099,0.00039699,30]
[408228772,1773268252032,-500.0,0.00039699,30]
[408228773,1773268252040,-151.0,0.00039699,30]
[408228774,1773268252050,-250.0,0.00039699,30]
[408228775,1773268252058,-250.0,0.00039699,30]
[408228776,1773268252067,-500.0,0.00039699,30]
[408228777,1773268252076,-209.40437684,0.00039699,30]
[408228778,1773268252085,-200.0,0.00039699,30]
[408228779,1773268252094,-294.03509995,0.00039699,30]
[408228780,1773268252102,-250.0,0.00039699,30]
[408228781,1773268252111,-250.0,0.00039699,30]
[408228782,1773268252120,-170.94273677,0.00039699,30]
[408228783,1773268252130,-217.15233878,0.00039699,30]
[408228784,1773268252139,-200.0,0.00039699,30]
[408228785,1773268252148,-250.0,0.00039699,30]
[408228786,1773268252157,-250.0,0.00039699,30]
[408228787,1773268252166,-170.0,0.00039699,30]
[408228788,1773268252175,-205.33524266,0.00039699,30]
[408228789,1773268252184,-250.0,0.00039699,30]
[408228790,1773268252193,-250.0,0.00039699,30]
[408228791,1773268252202,-225.18697532,0.00039699,30]
[408228792,1773268252212,-250.0,0.00039699,30]
[408228793,1773268252221,-250.0,0.00039699,30]
[408228794,1773268252230,-233.51889341,0.00039699,30]
[408228795,1773268252239,-176.29,0.00039699,30]
[408228796,1773268252249,-250.0,0.00039699,30]
[408228797,1773268252258,-250.0,0.00039699,30]
[408228798,1773268252268,-347.35601544,0.00039699,30]
[408228799,1773268252279,-244.73460973,0.00039699,30]
[408228800,1773268252289,-250.0,0.00039699,30]
[408228801,1773268252299,-250.0,0.00039699,30]
[408228802,1773268252308,-500.61553775,0.00039699,30]
[408228803,1773268252317,-250.0,0.00039699,30]
[408228804,1773268252327,-250.0,0.00039699,30]
[408228805,1773268252337,-250.0,0.00039699,30]
[408228806,1773268252347,-250.0,0.00039699,30]
[408228807,1773268252358,-250.0,0.00039699,30]
[408228808,1773268252368,-250.0,0.00039699,30]
[408228809,1773268252378,-250.0,0.00039699,30]
[408228810,1773268252388,-250.0,0.00039699,30]
[408228811,1773268252399,-500.0,0.00039699,30]
[408228812,1773268252408,-200.0,0.00039699,30]
[408228813,1773268252418,-250.0,0.00039699,30]
[408228814,1773268252427,-518.5,0.00039699,30]
[408228815,1773268252436,-200.0,0.00039699,30]
[408228816,1773268252446,-250.0,0.00039699,30]
[408228817,1773268252455,-537.6845,0.00039699,30]
[408228818,1773268252464,-200.0,0.00039699,30]
[408228819,1773268252474,-500.0,0.00039699,30]
[408228820,1773268252484,-250.0,0.00039699,30]
[408228821,1773268252497,-557.5788265,0.00039699,30]
[408228822,1773268252506,-205.64499173,0.00039699,30]
[408228823,1773268252515,-2000.0,0.00039699,30]
[408228824,1773268252524,-500.0,0.00039699,30]
[408228825,1773268252535,-578.20924308,0.00039699,30]
[408228826,1773268252544,-250.0,0.00039699,30]
[408228827,1773268252554,-2000.0,0.00039699,30]
[408228828,1773268252564,-500.0,0.00039699,30]
[408228829,1773268252573,-599.60298507,0.00039699,30]
[408228830,1773268252582,-250.0,0.00039699,30]
[408228831,1773268252592,-2000.0,0.00039699,30]
[408228832,1773268252601,-500.0,0.00039699,30]
[408228833,1773268252611,-2000.0,0.00039699,30]
[408228834,1773268252621,-500.0,0.00039699,30]
[408228835,1773268252630,-621.78829552,0.00039699,30]
[408228836,1773268252640,-2000.0,0.00039699,30]
[408228837,1773268252649,-500.0,0.00039699,30]
[408228838,1773268252659,-644.79446246,0.00039699,30]
[408228839,1773268252668,-2000.0,0.00039699,30]
[408228840,1773268252678,-500.0,0.00039699,30]
[408228841,1773268252687,-668.65185757,0.00039699,30]
[408228842,1773268252696,-176.94205562,0.00039699,30]
[408228843,1773268252706,-500.0,0.00039699,30]
[408228844,1773268252715,-693.3919763,0.00039699,30]
[408228845,1773268252724,-500.0,0.00039699,30]
[408228846,1773268252733,-719.04747942,0.00039699,30]
[408228847,1773268252743,-500.0,0.00039699,30]
[408228848,1773268252752,-745.65223616,0.00039699,30]
[408228849,1773268252761,-500.0,0.00039699,30]
[408228850,1773268252771,-576.92592664,0.00039699,30]
[408228851,1773268252780,-500.0,0.00039699,30]
[408228852,1773268252790,-500.0,0.00039699,30]
[408228853,1773268252799,-500.0,0.00039699,30]
[408228854,1773268252809,-500.0,0.00039699,30]
[408228855,1773268252818,-500.0,0.00039699,30]
[408228856,1773268252827,-500.0,0.00039699,30]
[408228857,1773268252836,-500.0,0.00039699,30]
[408228858,1773268252846,-500.0,0.00039699,30]
[408228859,1773268252855,-500.0,0.00039699,30]
[408228860,1773268252864,-251.0,0.00039699,30]
[408228861,1773268252874,-260.287,0.00039699,30]
[408228862,1773268252883,-354.84407467,0.00039699,30]
[408228863,1773268252892,-159189.00118968,0.000397,30]
[408228864,1773268252902,-133349.25775356,0.000397,30]
[408228865,1773268252910,-500.0,0.000397,120]
[408228866,1773268252920,-200.0,0.000397,2]
[408228867,1773268252929,-500.0,0.000397,30]
[408228868,1773268252939,-848.65829186,0.000397,14]
[408228869,1773268252948,-1516.0,0.000397,7]
[408228870,1773268252958,-350.0,0.00039822,2]
[408228871,1773268252967,-532.1713086,0.00039824,62]
[408228872,1773268252976,-9087.2090106,0.00039835,2]
[408228873,1773268252985,-10111.5341148,0.0004,7]
[408228874,1773268252995,-500.0,0.0004,120]
[408228875,1773268253004,-160.0,0.0004,120]
[408228876,1773268253013,-151.03,0.0004,2]
[408228877,1773268253022,-151.03,0.0004,2]
[408228878,1773268253031,-151.03,0.0004,2]
[408228879,1773268253041,-151.03,0.0004,2]
[408228880,1773268253050,-151.03,0.0004,2]
[408228881,1773268253058,-151.03,0.0004,2]
[408228882,1773268253067,-151.03,0.0004,2]
[408228883,1773268253076,-151.03,0.0004,2]
[408228884,1773268253086,-151.03,0.0004,2]
[408228885,1773268253095,-151.03,0.0004,2]
[408228886,1773268253105,-151.03,0.0004,2]
[408228887,1773268253114,-151.03,0.0004,2]
[408228888,1773268253123,-151.03,0.0004,2]
[408228889,1773268253133,-151.03,0.0004,2]
[408228890,1773268253143,-151.03,0.0004,2]
[408228891,1773268253152,-151.03,0.0004,2]
[408228892,1773268253161,-151.03,0.0004,2]
[408228893,1773268253170,-151.03,0.0004,2]
[408228894,1773268253179,-151.03,0.0004,2]
[408228895,1773268253189,-151.03,0.0004,2]
[408228896,1773268253198,-151.03,0.0004,2]
[408228897,1773268253207,-151.03,0.0004,2]
[408228898,1773268253216,-151.03,0.0004,2]
[408228899,1773268253226,-151.03,0.0004,2]
[408228900,1773268253236,-151.03,0.0004,2]
[408228901,1773268253245,-151.03,0.0004,2]
[408228902,1773268253255,-350.0,0.00040055,2]
[408228903,1773268253264,-200.0,0.00040097,2]
[408228904,1773268253273,-2000.0,0.000401,2]
[408228905,1773268253282,-150.0,0.00040165,2]
[408228906,1773268253291,-350.0,0.00040425,2]
[408228907,1773268253300,-543.98044598,0.00040434,65]
[408228908,1773268253309,-200.0,0.00040498,2]
[408228909,1773268253319,-334.67,0.00040663,30]
[408228910,1773268253328,-1017.48,0.000408,120]
[408228911,1773268253337,-347.56,0.000408,14]
[408228912,1773268253347,-3425.01,0.000408,14]
[408228913,1773268253356,-954.59,0.00040827,2]
[408228914,1773268253365,-200.0,0.00040903,2]
[408228915,1773268253374,-506.85,0.00040949,120]
[408228916,1773268253385,-500.0,0.00040949,120]
[408228917,1773268253396,-500.0,0.00040949,120]
[408228918,1773268253406,-500.0,0.00040949,120]
[408228919,1773268253415,-500.0,0.00040949,30]
[408228920,1773268253425,-300.0,0.00040949,10]
[408228921,1773268253434,-500.0,0.00040949,45]
[408228922,1773268253443,-500.0,0.00040949,120]
[408228923,1773268253455,-500.0,0.00040949,120]
[408228924,1773268253472,-500.0,0.00040949,120]
[408228925,1773268253485,-19756.0,0.0004095,60]
[408228926,1773268253499,-545.29944885,0.00040969,2]
[408228927,1773268253510,-500.0,0.00040989,2]
[408228928,1773268253520,-500.0,0.00040989,120]
[408228929,1773268253530,-546.32480864,0.00040989,30]
[408228930,1773268253540,-500.0,0.00040996,30]
[408228931,1773268253551,-500.0,0.00040999,120]
[408228932,1773268253562,-500.0,0.00040999,120]
[408228933,1773268253572,-500.0,0.00040999,120]
[408228934,1773268253582,-300.0,0.00040999,10]
[408228935,1773268253592,-65375.37215837,0.00041,30]
[408228936,1773268253602,-500.0,0.00041,120]
[408228937,1773268253611,-1391.0,0.00041,10]
[408228938,1773268253621,-165.38955886,0.00041096,2]
[408228939,1773268253631,-7147.76768481,0.000413,28]
[408228940,1773268253641,-200.0,0.00041312,2]
[408228941,1773268253651,-1854.08,0.000414,30]
[408228942,1773268253661,-350.0,0.00041481,2]
[408228943,1773268253671,-191.5,0.000415,14]
[408228944,1773268253681,-350.0,0.00041582,2]
[408228945,1773268253690,-758.23075998,0.00041747,72]
[408228946,1773268253700,-160.0,0.000418,2]
[408228947,1773268253709,-350.0,0.00041859,2]
[408228948,1773268253719,-500.0,0.00042,120]
[408228949,1773268253729,-334.67,0.00042105,30]
[408228950,1773268253739,-150.0,0.00042173,120]
[408228951,1773268253748,-922.0,0.00042235,2]
[408228952,1773268253758,-1213.0,0.00042235,2]
[408228953,1773268253768,-1043.0,0.00042235,2]
[408228954,1773268253778,-620.0,0.00042235,2]
[408228955,1773268253788,-3506.0,0.00042235,2]
[408228956,1773268253798,-1342.0,0.00042235,2]
[408228957,1773268253808,-300.0,0.00042292,30]
[408228958,1773268253818,-300.0,0.00042299,30]
[408228959,1773268253827,-19756.0,0.000423,60]
[408228960,1773268253837,-169.6147546,0.000424,2]
[408228961,1773268253847,-2265.748,0.00042424,64]
[408228962,1773268253856,-5287.77,0.00042546,120]
[408228963,1773268253866,-3304.85,0.00042546,30]
[408228964,1773268253876,-417.61,0.00042546,120]
[408228965,1773268253886,-751.38,0.00042546,120]
[408228966,1773268253895,-6361.47851702,0.0004263,2]
[408228967,1773268253905,-215.38440284,0.0004264,2]
[408228968,1773268253915,-1351.59773329,0.00042666,14]
[408228969,1773268253924,-190.89,0.000427,46]
[408228970,1773268253934,-200.648828,0.000427,23]
[408228971,1773268253944,-2006.75595099,0.00042709,120]
[408228972,1773268253954,-506.85,0.00042709,120]
[408228973,1773268253964,-500.0,0.00042709,120]
[408228974,1773268253974,-500.0,0.00042709,120]
[408228975,1773268253984,-500.0,0.00042709,120]
[408228976,1773268253994,-500.0,0.00042709,30]
[408228977,1773268254003,-391.67175931,0.00042709,45]
[408228978,1773268254013,-500.0,0.00042709,120]
[408228979,1773268254022,-500.0,0.00042709,120]
[408228980,1773268254032,-500.0,0.00042709,120]
[408228981,1773268254042,-324.75878306,0.00042711,30]
[408228982,1773268254052,-25000.0,0.00042712,15]
[408228983,1773268254062,-500.0,0.0004272,2]
[408228984,1773268254071,-500.0,0.0004272,120]
[408228985,1773268254081,-25000.0,0.00042721,15]
[408228986,1773268254091,-25000.0,0.0004273,15]
[408228987,1773268254100,-25000.0,0.00042731,15]
[408228988,1773268254110,-4000.0,0.0004274,14]
[408228989,1773268254122,-884.0177,0.00042779,2]
[408228990,1773268254133,-300.0,0.0004279,2]
[408228991,1773268254144,-1049.32462188,0.0004279,2]
[408228992,1773268254154,-306.85773388,0.0004279,2]
[408228993,1773268254165,-300.0,0.0004279,2]
[408228994,1773268254175,-856.81571584,0.0004279,2]
[408228995,1773268254185,-300.0,0.0004279,2]
[408228996,1773268254195,-1870.53228072,0.0004279,2]
[408228997,1773268254206,-308.12831896,0.0004279,2]
[408228998,1773268254216,-300.0,0.0004279,2]
[408228999,1773268254226,-300.0,0.0004279,2]
[408229000,1773268254236,-300.0,0.0004279,2]
[408229001,1773268254247,-459.7549358,0.0004279,2]
[408229002,1773268254257,-300.0,0.0004279,2]
[408229003,1773268254268,-300.0,0.0004279,2]
[408229004,1773268254278,-300.0,0.0004279,2]
[408229005,1773268254288,-300.0,0.0004279,2]
[408229006,1773268254298,-302.22433017,0.0004279,2]
[408229007,1773268254308,-300.0,0.0004279,2]
[408229008,1773268254319,-300.0,0.0004279,2]
[408229009,1773268254328,-520.03833217,0.0004279,2]
[408229010,1773268254339,-307.08561638,0.0004279,2]
[408229011,1773268254349,-300.0,0.0004279,2]
[408229012,1773268254359,-300.0,0.0004279,2]
[408229013,1773268254371,-300.0,0.0004279,2]
[408229014,1773268254384,-300.0,0.0004279,2]
[408229015,1773268254395,-300.0,0.0004279,2]
[408229016,1773268254406,-300.0,0.0004279,2]
[408229017,1773268254593,-371.63286256,0.0004279,2]
[408229018,1773268254603,-300.0,0.0004279,2]
[408229019,1773268254613,-300.0,0.0004279,2]
[408229020,1773268254624,-1085.0813603,0.0004279,2]
[408229021,1773268254633,-300.0,0.0004279,2]
[408229022,1773268254642,-300.0,0.0004279,2]
[408229023,1773268254651,-300.0,0.0004279,2]
[408229024,1773268254661,-300.0,0.0004279,2]
[408229025,1773268254670,-300.0,0.0004279,2]
[408229026,1773268254679,-300.0,0.0004279,2]
[408229027,1773268254688,-300.0,0.0004279,2]
[408229028,1773268254698,-300.0,0.0004279,2]
[408229029,1773268254707,-300.0,0.0004279,2]
[408229030,1773268254716,-300.0,0.0004279,2]
[408229031,1773268254725,-300.0,0.0004279,2]
[408229032,1773268254734,-300.0,0.0004279,2]
[408229033,1773268254743,-1049.32462188,0.0004279,2]
[408229034,1773268254753,-306.85773388,0.0004279,2]
[408229035,1773268254763,-300.0,0.0004279,2]
[408229036,1773268254772,-856.81571584,0.0004279,2]
[408229037,1773268254781,-300.0,0.0004279,2]
[408229038,1773268254791,-1137.54374348,0.0004279,2]
[408229039,1773268254800,-300.0,0.0004279,2]
[408229040,1773268254810,-300.0,0.0004279,2]
[408229041,1773268254819,-300.0,0.0004279,2]
[408229042,1773268254828,-308.12831896,0.0004279,2]
[408229043,1773268254838,-300.0,0.0004279,2]
[408229044,1773268254847,-300.0,0.0004279,2]
[408229045,1773268254856,-300.0,0.0004279,2]
[408229046,1773268254865,-459.7549358,0.0004279,2]
[408229047,1773268254874,-300.0,0.0004279,2]
[408229048,1773268254883,-31057.57258443,0.0004288,60]
[408229049,1773268254892,-500.0,0.00043,120]
[408229050,1773268254902,-1854.08,0.00043,30]
[408229051,1773268254911,-200.0,0.00043068,120]
[408229052,1773268254920,-200.0,0.00043068,120]
[408229053,1773268254929,-200.0,0.00043068,120]
[408229054,1773268254939,-200.0,0.00043068,120]
[408229055,1773268254948,-200.0,0.00043068,120]
[408229056,1773268254958,-350.0,0.00043157,2]
[408229057,1773268254967,-9087.2090106,0.00043175,15]
[408229058,1773268254976,-1919.72,0.000433,30]
[408229059,1773268254986,-350.0,0.00043346,2]
[408229060,1773268254995,-159.0,0.0004335,120]
[408229061,1773268255004,-347.56,0.000435,14]
[408229062,1773268255013,-3425.01,0.000435,14]
[408229063,1773268255023,-150.0,0.000435,10]
[408229064,1773268255032,-334.67,0.00043547,30]
[408229065,1773268255041,-306.5208456,0.00043562,120]
[408229066,1773268255050,-191.5,0.000436,14]
[408229067,1773268255061,-506.85,0.0004364,120]
[408229068,1773268255070,-500.0,0.0004364,120]
[408229069,1773268255078,-500.0,0.0004364,120]
[408229070,1773268255091,-500.0,0.0004364,120]
[408229071,1773268255100,-500.0,0.0004364,30]
[408229072,1773268255109,-500.0,0.0004364,120]
[408229073,1773268255119,-500.0,0.0004364,120]
[408229074,1773268255128,-500.0,0.0004364,120]
[408229075,1773268255137,-19756.0,0.0004365,60]
[408229076,1773268255148,-2000.0,0.000438,2]
[408229077,1773268255156,-884.0177,0.00043848,2]
[408229078,1773268255166,-6621.16773816,0.00043852,120]
[408229079,1773268255176,-555.72066828,0.00044,2]
[408229080,1773268255187,-347.0,0.00044,10]
[408229081,1773268255196,-660.97,0.00044158,120]
[408229082,1773268255206,-1919.72,0.000442,30]
[408229083,1773268255215,-150.0,0.00044281,120]
[408229084,1773268255225,-166.0,0.00044678,14]
[408229085,1773268255234,-151.0,0.00044678,14]
[408229086,1773268255243,-1516.0,0.00044678,14]
[408229087,1773268255252,-166.0,0.00044678,14]
[408229088,1773268255261,-1516.0,0.00044678,14]
[408229089,1773268255270,-166.0,0.00044678,14]
[408229090,1773268255278,-1516.0,0.00044678,14]
[408229091,1773268255288,-151.0,0.00044678,14]
[408229092,1773268255297,-166.0,0.00044678,14]
[408229093,1773268255305,-166.0,0.00044678,7]
[408229094,1773268255315,-1516.0,0.00044678,14]
[408229095,1773268255324,-166.0,0.00044678,14]
[408229096,1773268255333,-166.0,0.00044678,7]
[408229097,1773268255342,-151.0,0.00044678,14]
[408229098,1773268255351,-1516.0,0.00044678,14]
[408229099,1773268255360,-166.0,0.00044678,7]
[408229100,1773268255370,-160.0,0.00044678,14]
[408229101,1773268255379,-166.0,0.00044678,14]
[408229102,1773268255388,-1516.0,0.00044678,14]
[408229103,1773268255397,-166.0,0.00044678,14]
[408229104,1773268255405,-161.9823944,0.00044678,14]
[408229105,1773268255414,-166.0,0.00044678,7]
[408229106,1773268255423,-296.0,0.00044678,14]
[408229107,1773268255432,-1516.0,0.00044678,14]
[408229108,1773268255441,-166.0,0.00044678,14]
[408229109,1773268255450,-151.0,0.00044678,14]
[408229110,1773268255459,-166.0,0.00044678,7]
[408229111,1773268255492,-1516.0,0.00044678,14]
[408229112,1773268255502,-172.0,0.00044678,14]
[408229113,1773268255511,-151.0,0.00044678,14]
[408229114,1773268255520,-197.07598228,0.00044678,7]
[408229115,1773268255531,-1516.0,0.00044678,14]
[408229116,1773268255540,-204.57388744,0.00044678,14]
[408229117,1773268255550,-151.0,0.00044678,14]
[408229118,1773268255561,-808.51170057,0.00044678,14]
[408229119,1773268255571,-151.0,0.00044678,14]
[408229120,1773268255580,-151.0,0.00044678,14]
[408229121,1773268255589,-151.0,0.00044678,14]
[408229122,1773268255599,-151.0,0.00044678,14]
[408229123,1773268255608,-151.0,0.00044678,14]
[408229124,1773268255618,-151.0,0.00044678,14]
[408229125,1773268255627,-225.8088978,0.00044678,14]
[408229126,1773268255636,-151.0,0.00044678,14]
[408229127,1773268255646,-1516.0,0.00044678,14]
[408229128,1773268255655,-1516.0,0.00044678,14]
[408229129,1773268255664,-151.0,0.00044678,14]
[408229130,1773268255673,-1516.0,0.00044678,14]
[408229131,1773268255682,-1516.0,0.00044678,14]
[408229132,1773268255691,-151.0,0.00044678,14]
[408229133,1773268255700,-160.44308583,0.00044678,14]
[408229134,1773268255709,-1516.0,0.00044678,14]
[408229135,1773268255718,-151.0,0.00044678,14]
[408229136,1773268255728,-1516.0,0.00044678,14]
[408229137,1773268255737,-151.0,0.00044678,14]
[408229138,1773268255746,-1516.0,0.00044678,14]
[408229139,1773268255755,-151.0,0.00044678,14]
[408229140,1773268255765,-1516.0,0.00044678,14]
[408229141,1773268255774,-151.0,0.00044678,14]
[408229142,1773268255783,-1516.0,0.00044678,14]
[408229143,1773268255792,-151.0,0.00044678,14]
[408229144,1773268255801,-151.0,0.00044678,14]
[408229145,1773268255810,-1516.0,0.00044678,14]